{"text_format":"2","workbook":"xlsx","n_sheets":1,"sheets":["현황"],"not_rendered":{"charts":0,"images":0,"macros":0,"external_links":0,"defined_names":2,"comments":0,"pivot_tables":0},"unopened":[],"bounds":{"document_bytes":16777216,"sheet_cells":100000,"run_cost":"one","rows_first":2000,"rows_last":500,"rows_between":2000,"halvings":0,"cell_chars":16384,"cell_head_chars":4096},"cells_cut":0,"cells_raw":0,"read":"whole","date_system":"1900"}

{"sheet":"현황","index":0,"n_rows":27,"n_cols":9,"rows_kept":27,"cut":false,"hidden":false,"merged":[[1,1,1,8],[3,3,3,4]]}
[]
[null,"2018년 주요 연구개발과제 완료현황"]
[{"$nulls":8},"'18년 1월 현재"]
[null,"연도","과제명","연구기간",null,"수탁기관","비용(억원)","책임자","연구내용"]
[null,{"$f":"YEAR(D5)","v":2016},"PMU 데이터를 활용한 발전기 안정도 해석용 모델 파라미터 검증방법 수립","2016-03-15","2017-06-14","한국전기연구원",1.4,"문영환","ㅇ PMU 데이터를 이용한 발전기 안정도 해석 파라미터 검증 및 도출\nㅇ PMU 데이터를 이용한 발전기 안정도 해석 파라미터 도출시 계통 신뢰성 개선 효과 분석\nㅇ 발전소 PMU 데이터 측정기술의 확대 적용방안 제시\nㅇ PMU 설치 발전소에 대한 특성시험 수검 완화 방안 도출"]
[null,{"$f":"YEAR(D6)","v":2016},"Post-2020을 대비한 발전부문의 온실가스 감축목표 달성 전략에 관한 연구","2016-03-24","2017-01-23","포스코경영연구원",0.88,"안윤기","ㅇ 주요국(미/중/일/EU 등) Post-2020 국가 및 발전부문 온실가스 감축목표 및 로드맵 분석\nㅇ 우리나라 Post-2020 국가 및 발전부문 온실가스 감축로드맵 분석  \nㅇ 발전부문의 에너지․온실가스 정책 현황 및 개선 필요성 "]
[null,2016,"ESS유효용량을 반영한 주파수 조정 예비력 확보 방안","2016-03-28","2017-09-27","홍익대학교 산학협력단",1.7,"전영환","ㅇ 실질적으로 구분이 어려운 주파수추종과 자동발전제어 범위 연구 \nㅇ 에너지저장장치(ESS)의 용량을 주파수조정예비력에 반영하는 문제  \nㅇ 주파수조정서비스 성능 평가사례 방법 등에 관한 연구\nㅇ ESS 운영환경에서 주파수조정예비력 최적 확보방안 제시"]
[null,2016,"현 전력시장 환경에서의 중장기 송전망 계획 제도 및 방법론 연구","2016-04-07","2017-10-06","고려대학교 산학협력단",1.7,"장길수","ㅇ 우리나라 전력산업 구조에 맞는 송전망계획 규제 개발\nㅇ 합리적인 송전망 투자의사 결정을 위한 방법론 및 제도 연구  \nㅇ 현행 전력시장 여건에 맞는 신규발전기 송전망 접속조건 연구"]
[null,2016,"전계통정전시 BESS를 이용한 자체기동발전기 대체방안 연구","2016-04-06","2017-10-05","한국전력연구원",1.63,"장병훈","ㅇ 시송전 및 우선공급발전기 가압을 위한 BESS 적정 위치, 용량 및 Black Start 기능 정의\nㅇ BESS를 이용한 정전 시 비상복구 시간 및 신뢰성 개선 효과 분석"]
[null,2016,"광역정전 예방을 위한 발전기 보호방식 선정 및 정정기준 수립에 관한 연구","2016-04-01","2017-06-30","이에스피㈜",1.3973500000000001,"박성우","ㅇ 계통외란에 대비한 발전기 보호계전기 적용 현황 해외사례 조사\nㅇ 국내 발전기 보호방식 및 정정기준 현황 분석\nㅇ 계통구성 변화를 반영한 발전기 보호계전기 동작특성 모델링\nㅇ 계통특성에 기반한 발전기 정정기준 수립"]
[null,2016,"산업연관효과를 반영한 산업부문 전력 3E모형 개발","2016-04-21","2017-04-21","연세대학교 산학협력단",0.8,"조하현","ㅇ 산업연관표를 활용한 산업 간 연계효과 분석 및 모형화 방안 검토\nㅇ 배출권거래제 등 환경․에너지정책의 산업부문에의 영향도 분석"]
[null,2016,"전압안정성 확보를 위한 실계통 전압 제어 및 운영 방법 개선 연구","2016-07-01","2017-08-31","서울과학기술대학교 산학협력단",1.11998,"송화창","ㅇ 저주파수계전기 동작 시 과전압 발생 억제를 위한 방안 수립 \nㅇ 송전선로 고장시 345/154kV 변압기 역가압에 의한 과전압 완화 방안 수립\nㅇ 융통조류 운영 한계값 산정시 적정 전압안정도 불안정 기준전압 및 관련 근거 수립\nㅇ 융통조류 한계값 산정에 적용되는 여유 마진 적정값 및 확보 근거 수립"]
[null,2016,"수요반응자원의 보조서비스 참여방안 연구","2016-06-01","2017-05-31","고려대학교 산학협력단",1.1499999999999999,"주성관","ㅇ 수요자원을 활용한 국내 보조서비스 운영을 위한 방안 강구 및 실증\nㅇ 보조서비스 참여를 위한 수요자원 관리 모델 설계"]
[null,2016,"복수모형의 수요예측결과 통합 및 모형정확도 평가방안 연구","2016-07-12","2017-07-11","연세대학교 산학협력단",0.9,"조하현","ㅇ 전력거래소 현실에 적합한 예측결과 통합기법 및 적용방안 제시  \nㅇ 모형별 예측결과에 대한 정확도 평가방안 제시"]
[null,2016,"계통전압 유지율 평가기준 재정립에 관한 연구","2016-07-01","2017-06-30","고려대학교 산학협력단",1.1000000000000001,"이병준","ㅇ 전압유지율 지표개선 방안 도출\nㅇ 정부경영평가 지표화 방안 제시\n  - 월별 EMS 운전실적 저장 및 분석, 분석프로그램 개발"]
[null,2016,"미래불확실성의 수급계획 반영을 위한 기초연구","2016-07-01","2017-06-30","부산대학교 산학협력단",1.25,"김욱","ㅇ 장기 수급계획의 불확실성 요인의 해외사례 조사     \nㅇ 불확실성 요인별 국내 적용 방안 검토"]
[null,2016,"실시간 관제운영 분석시스템 구축방안 연구","2016-08-01","2017-05-31","위덕대학교 산학협력단",0.92,"박정도","ㅇ 국내 수급운영업무 현황분석 검토\nㅇ 수급운영실적 분석방안 및 기준 검토\nㅇ 시스템 활용방안과 구축 타당성 검토\nㅇ 시스템 개발방향 및 구축로드맵 수립"]
[null,2016,"비전통 예비력자원 보상체계 개선 및 에너지시장 연계방안 연구","2016-10-01","2017-06-30","건국대학교 산학협력단",0.87,"박종배","ㅇ 비전통 예비력자원 보상 관련 이론 및 해외사례 조사\nㅇ 예비력 및 에너지 가격 산정을 위한 적정 전산모형 검토\nㅇ 현 전력시장(하루전)에서의 비전통자원 보상체계 및 에너지시장 연계방안 도출\nㅇ 향후 실시간시장 도입을 고려한 현 전력시장(하루전)에서의 개선안 제시"]
[null,2016,"건물용 전기저장장치의 효율적인 운영방안 연구","2016-10-24","2017-08-23","㈜우암코퍼레이션",0.97,"조영호","ㅇ 본사사옥 건물용 전기저장장치의 운영 관련 데이터 축적\nㅇ 축적 데이터 분석을 통한 경제성 제고 및 효과적인 운영방안 개발\nㅇ 본사사옥 전기저장장치 운영원가 분석을 통한 경제성 제고"]
[null,2016,"전력시장에서의 정산·결제기능 보완방안 연구","2016-10-07","2017-08-06","삼정회계법인",1.47,"장현국","ㅇ 전력거래의 재무적 안정성 강화를 위해 해외 유사기관의 사례 벤치마킹\nㅇ 전력시장 정산·결제기능 보완 방안 수립"]
[null,2016,"자연재해에 따른 대규모 발전단지 정지시 전력계통영향 검토","2017-01-02","2017-06-30","경일대학교 산학협력단",0.66161000000000003,"강상균","ㅇ 자연재해에 따른 대규모 발전단지 정지 및 이에 따른 전력설비 운전조건 변화를 고려한 해석 시나리오 수립\nㅇ 대규모 발전단지 정지가 전력계통에 미치는 영향 분석\nㅇ 자연재해 대비 안정한 계통운영을 위한 대책방안 수립"]
[null,2016,"운영예비력 기준 설정 및 적용방안에 관한 연구(수탁)","2016-05-01","2017-08-31","한국전기연구원",0.75,"이상호","ㅇ 운영예비력 기준 설정을 위한 기존 연구과제 개선내용 검토\nㅇ 해외 국가별 운영예비력 운용 사례 분석 등 관련 자료 조사․연구\nㅇ 전력계통 환경변화를 고려한 적정 운영예비력 선정방안 검토 및 기준 제시"]
[null,2016,"수요자원 용량 운영특성을 고려한 피크기여효과 및 수급계획 반영방안 연구","2016-12-29","2017-12-28","광주과학기술원",1.0741799999999999,"김진호","ㅇ 국내외 전력시장 수급현황, 수요자원 정책 및 제도동향 분석\nㅇ 수요자원 용량 운영특성 분석을 통한 피크억제 기여효과 산정방안 연구\nㅇ 수요자원 용량에 대한 전력수급계획 반영방식 연구\nㅇ 수요자원 용량을 전력수급계획 반영시 영향 분석 \nㅇ 국내 적용방안 제시, 절차 및 제도 개선방안 도출 "]
[null,2017,"경제학적 기법을 활용한 산업용 전력의 경제적 가치 연구","2017-03-06","2017-11-05","서울과학기술대학교 산학협력단",1.2691399999999999,"유승훈","ㅇ 해외 국가별 산업용전력의 경제적 가치 사례에 대한 분석 등 관련 조사․연구\nㅇ 전문조사기관을 활용하여 제조업 기업을 대상으로 한 전력소비실태조사 시행\nㅇ 경제이론을 적용하여 업종별로 구분된 산업용 전력의 경제적 가치(원/kWh)를 추정"]
[null,2017,"신규 기준발전기의 기준용량가격 산정기준 정립을 위한 연구","2017-02-20","2017-12-19","한국전력기술㈜",1.46648,"김형석","ㅇ 해외 기준용량가격 산정 자료 조사 및 분석\nㅇ 기준용량가격 중 건설투자비와 운전유지비의 세부 구성항목 분류 및 각 구성항목별 영향인자 조사\nㅇ 신규 기준발전기의 기준용량가격 표준 산정기준 정립\nㅇ 기준용량가격을 산정하기 위한 할인율 산정기준 정립\nㅇ 기준용량가격 산정"]
[null,2017,"EMS 계통해석 기능을 활용한 동․서해안 발전기 제약량 실시간 산정 자동화 방안연구","2017-02-09","2017-12-08","한국전기연구원",1.5782400000000001,"이정호","ㅇ 현행 동․서해안 발전기 제약량 검토방식 및 절차 조사 \nㅇ 발전기제약량산정 자동화 방안 적정성 확보를 위한 프로토타입 개발\nㅇ 프로토타입에서 도출된 발전기제약량의 EMS 수용을 위한 기능개선 범위 도출\nㅇ EMS 실시간 계통해석 기능과 연계한 발전기제약량산정 결과 분석"]
[null,2017,"RPS 자체건설 기준가격 산정 및 규정화에 관한 연구","2017-05-02","2017-11-01","삼일회계법인",0.69933999999999996,"임지산","ㅇ RPS 자체건설 설비(태양광, 비태양광)에 대한 실사례를 통한 에너지원별 가중평균단가 조사\nㅇ RPS 자체건설 설비 자체건설 가중평균단가 산정\nㅇ RPS 자체건설 설비에 대한 가중평균단가 산정 방법에 따른 규정(안) 마련\nㅇ 자체건설 가중평균단가 산정 방법에 따른 규정 마련시, 기존규정과의 정합성 검토 "]